bitfinex-derivatives/quotes_ETHF0:USTF0_20250726
["timestamp","ask_amount","ask_price","bid_price","bid_amount"]
[1753569322341,4.2555,3752.1,3752.0,4.60769]
[1753569322548,4.2555,3752.1,3752.0,5.95639]
[1753569322849,4.78837,3752.1,3752.0,5.95639]
[1753569323243,4.2555,3752.1,3752.0,5.95639]
[1753569323447,4.78837,3752.1,3752.0,5.95639]
[1753569324539,4.2555,3752.1,3752.0,0.53289]
[1753569324749,4.78837,3752.1,3752.0,0.53289]
[1753569325041,4.78837,3752.1,3752.0,2.5407]
[1753569325348,4.7908,3751.9,3751.8,5.7485]
[1753569325546,2.33884,3751.6,3751.5,2.38260497]
[1753569325847,4.79536,3751.5,3751.4,7.48950497]
[1753569326047,4.79536,3751.5,3751.4,11.01390497]
[1753569326448,3.7101,3751.5,3751.4,11.01390497]
[1753569326741,3.7101,3751.5,3751.4,9.16427]
[1753569327047,3.7101,3751.5,3751.4,10.01707]
[1753569327943,2.8327,3751.9,3751.8,3.06791]
[1753569328144,4.2373,3751.9,3751.8,8.5208]
[1753569328344,4.2373,3751.9,3751.8,9.05371]
[1753569328650,3.7044,3751.9,3751.8,5.84591]
[1753569329052,4.2373,3751.9,3751.8,5.84591]
[1753569329448,3.7044,3751.9,3751.8,5.84591]
[1753569329649,4.573,3751.9,3751.8,5.313]
[1753569330545,4.7828,3751.9,3751.8,5.313]
[1753569331047,4.7828,3751.9,3751.8,5.84591]
[1753569331248,25.163,3752.0,3751.8,5.7428]
[1753569331442,2.3416,3752.7,3752.6,3.0678]
[1753569331642,1.4769,3752.7,3752.6,9.9048]
[1753569331952,26.6129,3753.1,3753.0,5.84574]
[1753569332450,27.4846,3753.1,3753.0,5.84574]
[1753569332645,28.8474,3753.1,3753.0,5.84574]
[1753569333151,29.38013,3753.1,3753.0,5.313]
[1753569333547,29.71583,3753.1,3753.0,5.313]
[1753569333747,29.1831,3753.1,3753.0,5.84574]
[1753569333949,29.92563,3753.1,3753.0,3.4267]
[1753569334144,2.54818,3752.7,3752.6,6.4147]
[1753569334347,4.2499,3752.7,3752.6,7.5547]
[1753569334757,4.2499,3752.7,3752.6,9.0536]
[1753569335051,4.78268,3752.7,3752.6,6.6345]
[1753569335548,4.78268,3752.7,3752.6,5.6925]
[1753569335745,4.2499,3752.7,3752.6,6.2253]
[1753569335950,3.7044,3752.7,3752.6,9.0536]
[1753569336458,4.23718,3752.7,3752.6,8.5208]
[1753569336857,3.7044,3752.7,3752.6,9.0536]
[1753569338752,3.7044,3752.7,3752.6,8.5208]
[1753569338952,3.7044,3752.7,3752.6,9.0536]
[1753569339555,4.23718,3752.7,3752.6,8.5208]
[1753569340150,4.57288,3752.7,3752.6,8.5208]
[1753569340355,4.78268,3752.7,3752.6,8.5208]
[1753569341952,4.78268,3752.7,3752.6,2.4847]
[1753569342546,1.8056,3752.4,3752.3,1.4989]
[1753569342746,4.2499,3752.4,3752.3,1.4989]
[1753569342955,4.78273,3752.4,3752.3,1.4989]
[1753569343545,1.8056,3752.3,3752.0,2.778]
[1753569343856,3.70125,3752.2,3752.1,1.4989]
[1753569344250,3.70125,3752.2,3752.1,2.4847]
[1753569344451,4.78275,3752.2,3752.1,2.4847]
[1753569345849,4.78281,3751.8,3751.7,10.90340497]
[1753569346054,4.78281,3751.8,3751.7,3.2078]
[1753569346450,4.78283,3751.7,3751.6,4.86730497]
[1753569346655,4.78283,3751.7,3751.6,2.4847]
[1753569348256,4.78283,3751.7,3751.6,3.4267]
[1753569348650,4.2499,3751.6,3751.4,2.38260497]
[1753569348847,29.2459,3751.6,3751.5,2.4847]
[1753569349258,29.77884,3751.6,3751.5,2.4847]
[1753569349760,29.77884,3751.6,3751.5,3.4267]
[1753569350454,4.2499,3751.6,3751.5,5.84595]
[1753569350654,24.966,3751.6,3751.5,6.69715]
[1753569351056,0.8717,3752.0,3751.9,6.1642]
[1753569351254,1.4769,3752.2,3752.1,2.535]
[1753569351455,2.87446,3752.2,3752.1,5.313]
[1753569351749,4.57296,3752.2,3752.1,5.313]
[1753569351952,1.2004,3752.0,3751.7,3.66170497]
[1753569352153,2.33853,3751.7,3751.6,4.86730497]
[1753569352350,4.78283,3751.7,3751.6,4.86730497]
[1753569352654,4.78283,3751.7,3751.6,2.4847]
[1753569353462,4.57303,3751.7,3751.6,5.313]
[1753569354162,4.78283,3751.7,3751.6,5.313]
[1753569355166,4.78283,3751.7,3751.6,3.4267]
[1753569356664,4.2499,3751.4,3751.3,5.6925]
[1753569356863,28.9511,3751.4,3751.3,9.05378]
[1753569357371,28.6154,3751.4,3751.3,9.05378]
[1753569357665,27.2526,3751.4,3751.3,9.90508]
[1753569357863,27.78557,3751.4,3751.3,9.3721]
[1753569358057,27.2526,3751.4,3751.3,9.90508]
[1753569358258,27.78557,3751.4,3751.3,9.90508]
[1753569358459,29.09717,3751.4,3751.3,9.3721]
[1753569358863,29.09218233,3751.4,3751.3,9.3721]
[1753569359059,29.42808233,3751.4,3751.3,5.558]
[1753569359263,29.63798233,3751.4,3751.3,7.9924]
[1753569359465,29.63798233,3751.4,3751.3,9.14888]
[1753569359767,29.42808233,3751.4,3751.3,9.14888]
[1753569360268,29.42808233,3751.4,3751.3,8.6159]
[1753569360967,29.42808233,3751.4,3751.3,9.14888]
[1753569362967,29.42808233,3751.4,3751.3,8.6159]
[1753569363172,29.63798233,3751.4,3751.3,8.6159]
[1753569363471,29.63798233,3751.4,3751.3,9.14888]
[1753569363673,29.42808233,3751.4,3751.3,9.14888]
[1753569363872,29.63798233,3751.4,3751.3,6.6081]
[1753569364274,29.63798233,3751.4,3751.3,8.6159]
[1753569364665,29.63798233,3751.4,3751.3,9.14888]
[1753569365072,29.63798233,3751.4,3751.3,8.6159]
[1753569365771,29.63798233,3751.4,3751.3,9.14888]
[1753569366166,29.42808233,3751.4,3751.3,8.6159]
[1753569366471,29.63798233,3751.4,3751.3,5.4081]
[1753569369371,3.3918,3750.9,3750.8,3.0993]
[1753569369571,29.65714,3750.9,3750.8,5.4207]
[1753569370267,29.65714,3750.9,3750.8,4.0364]
[1753569370479,29.65714,3750.9,3750.8,3.4129]
[1753569371283,29.65714,3750.9,3750.8,4.7972]
[1753569371573,29.65714,3750.9,3750.8,5.4207]
[1753569372983,29.65714,3750.9,3750.8,3.4129]
[1753569374386,29.65714,3750.9,3750.8,4.7972]
[1753569374682,29.65714,3750.9,3750.8,5.4207]
[1753569376679,29.65714,3750.9,3750.8,3.4129]
[1753569377292,0.53308,3750.6,3750.5,3.2078]
[1753569377591,4.86121,3750.4,3750.3,3.2857]
[1753569377789,29.58721,3750.4,3750.3,3.2857]
[1753569377983,29.58721,3750.4,3750.3,5.95382]
[1753569378181,28.8442,3750.4,3750.3,5.95382]
[1753569380686,28.5084,3750.4,3750.3,5.95382]
[1753569380888,27.1968,3750.4,3750.3,6.81012]
[1753569381084,2.4708,3750.7,3750.6,6.81008]
[1753569381287,27.1808,3750.7,3750.6,10.01788]
[1753569381485,27.7265,3750.7,3750.6,9.16158]
[1753569381693,4.86125,3750.1,3750.0,0.25]
[1753569381988,3.3918,3748.9,3748.8,5.62322261]
[1753569382187,29.54942,3748.9,3748.8,5.62322261]
[1753569382493,4.86142,3748.9,3748.8,3.4129]
[1753569382692,27.68612,3748.9,3748.8,6.277]
[1753569382896,27.68412,3748.9,3748.8,6.277]
[1753569383990,28.99572,3748.9,3748.8,5.4207]
[1753569385295,2.5624,3748.6,3748.2,1.3843]
[1753569385498,2.5624,3748.0,3747.5,3.2078]
[1753569385792,30.81597,3747.9,3747.4,1.3843]
[1753569386796,69.21597,3747.9,3747.1,4.5921]
[1753569387293,69.21597,3747.9,3747.3,1.4858]
[1753569388101,69.20997,3747.9,3747.8,4.13824654]
[1753569388302,3.03675,3747.3,3747.2,1.84368037]
[1753569388598,4.705,3747.3,3747.2,5.26868037]
[1753569388790,0.8823,3747.6,3747.2,2.47368037]
[1753569388990,0.8823,3747.6,3747.5,6.1095]
[1753569389194,28.87351,3747.6,3747.5,5.25]
[1753569389397,29.87451,3747.6,3747.5,5.25]
[1753569389795,30.50011,3747.6,3747.5,3.3108]
[1753569389995,30.50011,3747.6,3747.5,2.4587]
[1753569390396,30.49011,3747.6,3747.5,3.3108]
[1753569390602,5.86415,3747.3,3747.2,3.95948037]
[1753569390902,29.9526,3747.3,3747.2,5.26868037]
[1753569391396,28.326,3747.3,3747.2,5.80225037]
[1753569391602,27.0065,3747.3,3747.2,6.66175037]
[1753569393204,28.0075,3747.3,3747.2,6.12818037]
[1753569393407,5.23855,3747.3,3747.2,5.26868037]
[1753569393594,4.705,3747.3,3747.2,5.80225037]
[1753569393799,28.305,3747.3,3747.2,5.80225037]
[1753569394095,3.704,3747.3,3747.2,5.80225037]
[1753569394299,2.3845,3747.7,3747.6,2.98851]
[1753569394500,25.4773,3747.7,3747.6,6.64301]
[1753569395098,26.0872,3747.7,3747.6,6.64301]
[1753569397102,1.85296,3748.0,3747.2,3.22648037]
[1753569397103,1.4922,3748.0,3747.9,2.98847]
[1753569397301,3.2078,3748.6,3747.2,3.22648037]
[1753569397302,0.8823,3748.3,3748.2,6.64292]
[1753569397495,5.5923,3748.6,3748.5,2.98838]
[1753569397707,22.9362,3748.6,3748.5,6.64288]
[1753569398202,23.8285,3748.6,3748.5,6.64288]
[1753569398596,26.149,3748.6,3748.3,3.2078]
[1753569398797,4.54464,3747.4,3747.3,3.9408]
[1753569399002,68.84414,3747.4,3747.3,2.4587]
[1753569399594,5.86415,3747.3,3746.9,2.795]
[1753569399799,9.07195,3747.3,3746.9,2.795]
[1753569400002,9.07195,3747.3,3746.9,1.4858]
[1753569400600,14.07195,3747.3,3747.2,3.7e-07]
[1753569400904,5.86424,3746.7,3746.6,6.277]
[1753569401200,5.86424,3746.7,3746.6,2.825]
[1753569401402,28.46014,3746.7,3746.6,6.25]
[1753569401594,30.40524,3746.7,3746.6,3.4587]
[1753569401799,30.40524,3746.7,3746.6,1.0]
[1753569402003,30.40024,3746.7,3746.6,1.0]
[1753569402506,2.91814,3746.7,3746.6,6.25]
[1753569402706,28.77064,3746.7,3746.6,6.25]
[1753569402897,2.02584,3746.7,3746.6,7.1095]
[1753569403098,26.55684,3746.7,3746.6,7.1095]
[1753569403296,2.3845,3747.2,3747.1,2.455]
[1753569403605,28.76557,3747.2,3747.1,5.25]
[1753569404704,30.39217,3747.2,3747.1,5.25]
[1753569404905,30.39217,3747.2,3747.1,3.3108]
[1753569405209,0.8923,3746.7,3746.6,1.8521]
[1753569405505,30.38324,3746.7,3746.6,1.0]
[1753569405900,30.37024,3746.7,3746.6,6.25]
[1753569406106,30.37024,3746.7,3746.6,4.3108]
[1753569406305,30.37024,3746.7,3746.6,1.0]
[1753569408804,30.34424,3746.7,3746.6,4.3108]
[1753569409003,30.34424,3746.7,3746.6,6.25]
[1753569409203,24.48,3746.7,3746.6,3.455]
[1753569409503,24.48,3746.7,3746.6,3.98865]
[1753569409710,30.34424,3746.7,3746.6,1.0]
[1753569411204,30.33824,3746.7,3746.6,1.0]
[1753569411411,35.33824,3746.7,3746.6,0.40978]
[1753569411608,35.32624,3746.7,3746.6,0.40978]
[1753569412210,36.04337281,3746.7,3746.6,0.40978]
[1753569413113,11.58137281,3746.7,3746.6,0.40978]
[1753569413413,6.58137281,3746.7,3746.6,0.40978]
[1753569413813,31.02737281,3746.7,3746.6,0.40978]
[1753569415312,8.01302809,3746.7,3746.6,0.40978]
[1753569415506,31.03273695,3746.7,3746.6,0.40978]
[1753569415713,31.03273695,3746.7,3746.6,1.89558]
[1753569416415,30.39413695,3746.7,3746.6,5.65978]
[1753569416610,30.38713695,3746.7,3746.6,0.40978]
[1753569416917,31.01273695,3746.7,3746.6,0.40978]
[1753569417322,36.01273695,3746.7,3746.6,0.40978]
[1753569417616,36.01273695,3746.7,3746.6,1e-05]
[1753569417913,15.12709395,3746.7,3746.6,1e-05]
[1753569418115,0.53375,3745.9,3745.8,0.19755196]
[1753569418315,68.81005,3745.9,3745.8,5.04495196]
[1753569419110,0.72529878,3745.9,3745.8,6.14722196]
[1753569419418,2.96395,3746.6,3746.5,6.2728]
[1753569419615,21.74495,3746.6,3746.5,5.4159]
[1753569419914,21.74495,3746.6,3746.5,2.5251]
[1753569420114,21.74495,3746.6,3746.5,5.4159]
[1753569420520,5.95795,3746.6,3746.5,5.4159]
[1753569420718,30.34895,3746.6,3746.5,3.435]
[1753569420922,3.69265,3745.9,3745.8,0.19755196]
[1753569421118,71.99585,3745.9,3745.8,1.96e-06]
[1753569421318,75.48771221,3745.9,3745.8,1.96e-06]
[1753569421624,71.99085,3745.9,3745.8,1.96e-06]
[1753569422119,71.98685,3745.9,3745.8,1.96e-06]
[1753569424517,71.97285,3745.9,3745.8,2.52510196]
[1753569424715,69.08335,3745.9,3745.8,1.96e-06]
[1753569426032,1.9086,3745.2,3744.2,3.22649533]
[1753569426222,2.5348,3744.5,3744.4,1.8804]
[1753569426418,29.42065,3744.5,3744.4,1.8804]
[1753569426620,30.31025,3744.5,3744.4,1.8804]
[1753569426819,30.31025,3744.5,3744.4,3.435]
[1753569427019,29.68615,3744.5,3744.4,5.4159]
[1753569427216,27.31625,3744.5,3744.4,6.2728]
[1753569427416,28.69205,3744.5,3744.4,5.4159]
[1753569427621,30.31025,3744.5,3744.4,2.5251]
[1753569428525,0.53398,3744.3,3744.2,0.01869533]
[1753569428828,34.41248,3744.3,3744.2,1.8804]
[1753569429018,34.41248,3744.3,3744.2,0.9705]
[1753569429223,3.07341,3744.1,3744.0,1.4124]
[1753569429526,31.19971,3744.1,3744.0,3.819]
[1753569430020,24.86601,3744.1,3744.0,4.1479]
[1753569430619,24.86601,3744.1,3744.0,5.7025]
[1753569430823,24.86601,3744.1,3744.0,2.967]
[1753569431127,24.86601,3744.1,3744.0,5.3766]
[1753569431128,26.38181,3744.1,3744.0,5.3766]
[1753569431328,25.75561,3744.1,3744.0,5.3766]
[1753569431831,28.29501,3744.1,3744.0,5.3766]
[1753569432124,24.85001,3744.1,3744.0,5.7074]
[1753569432429,25.73961,3744.1,3744.0,5.7074]
[1753569432731,26.36581,3744.1,3744.0,5.3766]
[1753569433222,25.73961,3744.1,3744.0,5.7074]
[1753569433627,1.42361,3744.1,3744.0,5.7074]
[1753569433824,0.53393,3744.7,3744.4,2.4096]
[1753569434130,3.74166,3745.1,3745.0,5.7074]
[1753569434334,28.76413872,3745.1,3745.0,5.7074]
[1753569434628,28.23027872,3745.1,3745.0,5.7074]
[1753569434830,25.02247872,3745.1,3745.0,3.83168]
[1753569435031,24.302,3745.1,3745.0,3.83168]
[1753569435528,0.53381,3745.5,3745.3,1.8854]
[1753569435732,23.53525226,3745.4,3745.3,7.03943]
[1753569436033,2.80745528,3746.2,3745.8,1.4814]
[1753569436034,0.8896,3746.2,3745.8,1.4814]
[1753569436228,25.00852965,3746.1,3746.0,0.53374]
[1753569436533,25.00852965,3746.1,3746.0,2.01514]
[1753569436837,0.72052965,3746.1,3746.0,7.01514]
[1753569437225,1.43165528,3747.0,3746.0,5.0]
[1753569437437,0.72093832,3746.9,3746.8,0.53362]
[1753569437627,0.72093832,3746.9,3746.8,5.53362]
[1753569438224,0.72093832,3746.9,3746.8,5.0]
[1753569438430,0.72093832,3746.9,3746.8,0.53362]
[1753569438630,0.72093832,3746.9,3746.7,3.2078]
[1753569438826,2.24983832,3746.8,3746.7,3.2078]
[1753569439033,3.13943832,3746.8,3746.7,3.2078]
[1753569439229,24.262,3747.0,3746.7,3.2078]
[1753569439434,1.61091111,3746.9,3746.2,3.2078]
[1753569439630,0.8896,3746.9,3746.6,3.2078]
[1753569439932,0.8896,3746.4,3746.2,3.7415]
[1753569440126,0.8896,3746.4,3746.3,0.53369]
[1753569440530,24.255,3746.5,3746.2,3.2078]
[1753569440730,25.1446,3746.5,3746.2,3.7415]
[1753569440931,25.1446,3746.5,3746.4,0.53368]
[1753569442239,24.255,3746.5,3746.4,0.53368]
[1753569442635,24.255,3746.5,3746.2,3.2078]
[1753569442841,2.4185,3746.4,3746.2,3.2078]
[1753569443037,0.8896,3746.4,3746.3,0.53369]
[1753569443438,24.255,3746.5,3746.4,0.53368]
[1753569443738,24.255,3746.5,3746.4,5.81068]
[1753569443939,24.255,3746.5,3746.4,10.81068]
[1753569444341,24.255,3746.5,3746.4,5.81068]
[1753569444642,24.255,3746.5,3746.4,10.81068]
[1753569444842,24.75863,3746.8,3746.5,0.53366]
[1753569445143,2.4185,3746.6,3746.5,0.53366]
[1753569446439,2.4185,3746.6,3746.4,5.81067]
[1753569446636,4.32796,3746.5,3746.4,5.277]
[1753569448740,0.53372,3746.1,3746.0,3.2078]
[1753569448946,4.36242,3746.1,3746.0,3.2078]
[1753569450042,2.4315,3746.1,3746.0,3.74154]
[1753569450347,24.188,3746.2,3746.1,0.53372]
[1753569450941,24.188,3746.2,3746.1,5.53372]
[1753569451147,0.9361,3747.0,3746.9,0.53361]
[1753569451447,25.1081,3747.0,3746.9,0.53361]
[1753569451642,24.172,3747.0,3746.6,3.2078]
[1753569451849,2.4315,3746.9,3746.7,0.53363]
[1753569452145,4.36231,3746.9,3746.7,0.53363]
[1753569452347,2.4315,3746.8,3746.7,0.53364]
[1753569452647,1.4152,3747.3,3747.2,0.53357]
[1753569452847,27.0746,3747.3,3747.2,0.53357]
[1753569453144,28.0107,3747.3,3747.2,0.53357]
[1753569453940,28.0107,3747.3,3747.2,0.53356]
[1753569455547,30.5062,3747.3,3747.2,0.53356]
[1753569456447,5.7554,3747.2,3747.1,0.53357]
[1753569456643,6.3242,3747.2,3747.1,0.53357]
[1753569457946,4.927,3747.2,3747.1,0.53357]
[1753569458547,6.3242,3747.2,3747.1,0.53357]
[1753569458744,0.9361,3747.2,3747.1,0.53357]
[1753569458943,0.018,3747.3,3747.2,0.53356]
[1753569459251,0.018,3747.3,3747.2,5.53356]
[1753569462545,0.9541,3747.3,3747.2,5.53356]
[1753569463446,0.9541,3747.3,3747.2,0.53356]
[1753569464049,0.018,3747.3,3747.2,5.53356]
[1753569464354,0.018,3747.3,3747.2,0.53356]
[1753569465055,0.9541,3747.3,3747.2,0.53356]
[1753569466747,0.9541,3747.3,3747.2,5.277]
[1753569466748,6.3422,3747.3,3747.2,5.277]
[1753569466952,6.3422,3747.3,3747.2,5.81056]
[1753569467754,1.33367,3748.0,3747.2,5.81056]
[1753569467755,0.9361,3749.0,3747.5,3.2078]
[1753569468053,5.3181,3749.6,3748.9,3.2078]
[1753569468262,6.3242,3749.6,3749.5,3.2078]
[1753569468463,6.3242,3749.6,3749.5,3.74104]
[1753569468855,3.8287,3749.5,3749.4,0.53324]
[1753569469055,3.8287,3749.5,3749.0,3.2078]
[1753569469056,6.3242,3749.1,3749.0,3.2078]
[1753569469253,6.3242,3749.1,3749.0,3.74111]
[1753569469761,0.9361,3749.1,3749.0,3.74111]
[1753569470161,1.3972,3749.4,3749.3,0.53327]
[1753569470162,2.4315,3749.4,3749.3,0.53327]
[1753569470354,3.0003,3749.4,3749.3,0.53327]
[1753569470550,6.3242,3749.1,3749.0,3.2078]
[1753569470757,3.8287,3749.6,3749.0,3.2078]
[1753569470952,2.4955,3749.2,3749.1,3.2078]
[1753569471160,5.3881,3749.2,3749.1,3.2078]
[1753569471469,6.3242,3749.2,3749.1,3.74109]
[1753569472069,6.3242,3749.2,3749.1,3.2078]
[1753569472367,6.85748,3749.2,3749.1,3.2078]
[1753569474671,6.3242,3748.8,3748.7,0.53335]
[1753569475875,6.3242,3748.8,3748.6,3.2078]
[1753569476069,2.4955,3748.8,3748.7,0.53335]
[1753569476266,1.4894,3748.7,3748.6,3.2078]
[1753569476568,3.02885,3748.7,3748.6,3.2078]
[1753569476774,6.85755,3748.7,3748.6,3.2078]
[1753569476969,4.8193,3748.3,3748.2,3.2078]
[1753569477174,6.85761,3748.3,3748.2,3.2078]
[1753569482073,2.5914,3747.9,3747.8,3.74128]
[1753569482280,5.0214,3748.6,3748.5,0.53338]
[1753569482480,3.2078,3748.8,3748.7,0.53335]
[1753569482776,4.0695,3748.8,3748.7,0.53415]
[1753569483185,1.5683,3749.0,3748.9,0.53412]
[1753569483479,0.8617,3749.0,3748.9,0.53412]
[1753569483675,2.5914,3749.0,3748.7,3.2086]
[1753569483876,6.371,3748.8,3748.7,3.74115]
[1753569484176,6.371,3748.8,3746.9,23.946]
[1753569484177,6.371,3748.8,3748.2,3.2078]
[1753569484380,0.53339,3748.5,3748.4,0.53339]
[1753569484574,0.53339,3748.5,3748.3,0.5334]
[1753569484778,0.53339,3748.4,3748.2,3.74121]
[1753569484979,0.53339,3748.4,3748.2,3.74201]
[1753569485175,2.43,3748.3,3748.2,3.74201]
[1753569485775,3.7796,3748.3,3748.2,3.74201]
[1753569485977,4.31301,3748.3,3748.2,0.53421]
[1753569486175,4.31301,3748.3,3748.2,3.2086]
[1753569486374,3.7796,3748.3,3748.2,3.74202]
[1753569486779,4.31301,3748.3,3748.2,3.2086]
[1753569487079,4.31301,3748.3,3748.2,3.74202]
[1753569487583,4.31301,3748.3,3748.2,3.2086]
[1753569487883,6.90441,3748.3,3748.2,3.2086]
[1753569488082,6.90441,3748.3,3748.2,3.74202]
[1753569488781,0.53343,3748.2,3747.9,0.0008]
[1753569489079,4.0859,3748.1,3748.0,0.53424]
[1753569490682,5.0214,3748.1,3748.0,0.53424]
[1753569491680,6.371,3748.1,3748.0,0.53425]
[1753569492784,3.12485,3748.0,3747.9,5.81045]
[1753569492980,3.12485,3748.0,3747.9,5.81125]
[1753569492981,6.371,3748.0,3747.9,5.81125]
[1753569493475,6.90445,3748.0,3747.9,5.81125]
[1753569493671,6.371,3748.0,3747.9,5.81125]
[1753569494084,6.371,3748.0,3747.9,0.53425]
[1753569498790,6.90447,3747.9,3747.8,3.2078]
[1753569498991,2.5914,3747.9,3747.4,8.4848]
[1753569499185,2.5914,3747.5,3747.4,8.4856]
[1753569499389,5.0214,3747.5,3747.4,9.01914]
[1753569502884,3.0481,3747.5,3747.4,9.01914]
[1753569503186,2.5914,3748.6,3748.5,0.53338]
[1753569503385,3.2078,3749.5,3749.2,0.53328]
[1753569503591,2.5914,3749.3,3749.2,0.53328]
[1753569503887,2.5914,3748.9,3748.6,5.277]
[1753569504087,5.5093,3748.8,3748.7,0.53334]
[1753569504789,6.371,3748.8,3748.7,0.53334]
[1753569506389,5.0214,3748.8,3748.7,0.53334]
[1753569506588,0.8617,3749.0,3748.6,3.2078]
[1753569506890,6.371,3749.1,3748.7,6.61038]
[1753569507090,6.371,3749.1,3749.0,3.74111]
[1753569508091,3.0481,3749.1,3749.0,3.74111]
[1753569508391,6.1796,3749.1,3749.0,3.74111]
[1753569509492,2.7767,3749.0,3748.7,5.277]
[1753569509692,6.0627,3748.8,3748.7,5.81035]
[1753569510191,2.4059,3748.3,3748.2,3.2078]
[1753569510394,6.0627,3748.3,3748.2,3.74122]
[1753569516393,6.0627,3748.3,3748.2,3.2078]
[1753569516594,2.4059,3747.9,3747.8,3.74128]
[1753569516796,6.0627,3747.9,3747.8,3.74128]
[1753569517201,3.286,3749.4,3749.3,0.53326]
[1753569517400,6.0627,3749.4,3749.3,0.53326]
[1753569517704,6.0627,3749.2,3749.1,3.74109]
[1753569521703,27.006,3749.2,3749.1,3.74109]
[1753569521907,29.7827,3749.2,3749.1,3.74109]
[1753569522599,3.286,3749.2,3749.1,3.74109]
[1753569522800,6.0627,3749.2,3749.1,0.53329]
[1753569524901,6.0627,3748.8,3748.7,3.74115]
[1753569525106,6.0627,3748.8,3748.7,0.53335]
[1753569525808,6.0627,3748.8,3748.7,3.74115]
[1753569526010,0.8801,3748.8,3748.7,3.74115]
[1753569526205,1.481,3749.1,3749.0,0.53331]
[1753569526412,26.0531,3749.1,3749.0,0.53331]
[1753569526811,26.6232,3749.1,3749.0,0.53331]
[1753569527111,28.459,3749.1,3749.0,0.53331]
[1753569527807,26.6232,3749.1,3749.0,0.53331]
[1753569528007,23.692,3749.1,3749.0,0.53331]
[1753569528811,3.8869,3749.4,3749.3,0.53327]
[1753569529011,3.8869,3749.4,3749.3,3.74107]
[1753569529208,5.1826,3749.4,3749.3,3.74107]
[1753569529512,6.0627,3749.4,3749.3,3.74107]
[1753569530807,6.0627,3749.4,3749.3,0.53327]
[1753569531310,2.4059,3749.2,3749.1,0.53328]
[1753569531510,6.0627,3749.2,3749.1,0.53328]
[1753569532110,6.0627,3748.9,3748.8,8.4848]
[1753569532310,29.7177,3748.9,3748.8,5.81034]
[1753569532512,30.25102,3748.9,3748.4,3.2078]
[1753569532703,2.4059,3748.8,3748.7,0.53335]
[1753569532906,6.0627,3748.8,3748.4,3.2078]
[1753569533104,6.0627,3748.5,3748.4,3.2078]
[1753569533310,30.24408,3748.5,3748.4,3.2078]
[1753569533608,29.7107,3748.5,3747.9,3.2078]
[1753569533810,5.1826,3747.5,3747.4,4.51834]
[1753569534111,3.7016,3748.2,3748.1,2.10374]
[1753569534312,28.8246,3748.2,3748.1,4.51824]
[1753569534921,28.8246,3748.2,3748.1,3.9848]
[1753569535416,28.8246,3748.2,3748.1,4.51824]
[1753569539216,28.8246,3748.2,3748.1,4.51924]
[1753569540314,44.5302,3748.5,3748.4,4.50369]
[1753569540521,68.68358,3748.5,3748.4,3.9703]
[1753569540914,6.3775,3748.2,3748.1,1.5955]
[1753569541119,29.9875,3748.2,3748.1,2.12894]
[1753569541315,3.829,3748.1,3747.7,1.4345]
[1753569541515,5.4599,3747.8,3747.7,4.50379]
[1753569541710,29.0659,3747.8,3747.7,4.50379]
[1753569542715,29.0659,3747.8,3747.7,4.50479]
[1753569544721,29.0659,3747.8,3747.7,3.9703]
[1753569544922,1.9312,3747.2,3747.1,3.07088]
[1753569545225,26.9348,3747.2,3747.1,4.50638]
[1753569546620,29.0539,3747.2,3747.1,4.50638]
[1753569547019,3.433,3747.6,3747.5,0.53352]
[1753569547325,28.4286,3747.6,3747.5,4.50632]
[1753569547525,29.0459,3747.6,3747.5,4.50632]
[1753569549528,29.0349,3747.6,3747.5,4.50632]
[1753569550019,23.575,3747.6,3747.5,4.50632]
[1753569550224,24.4789,3747.6,3747.5,4.50632]
[1753569551120,25.8885,3747.6,3747.5,4.50632]
[1753569551527,26.9158,3747.6,3747.5,4.50632]
[1753569552126,27.5331,3747.6,3747.5,4.50632]
[1753569552524,29.0349,3747.6,3747.5,4.50632]
[1753569558128,5.4599,3747.2,3747.1,4.50488]
[1753569558428,29.8975,3747.2,3747.1,4.50388]
[1753569558632,26.8608,3747.2,3747.1,4.50638]
[1753569558927,25.4512,3747.2,3747.1,4.50638]
[1753569559727,24.4239,3747.2,3747.1,4.50638]
[1753569560024,5.4599,3747.5,3747.4,2.13054]
[1753569560230,28.9769,3747.5,3747.4,4.50634]
[1753569560931,5.4599,3747.5,3747.4,4.50634]
[1753569561130,0.9039,3747.5,3747.4,4.50634]
[1753569561320,8.6677,3747.8,3747.7,4.50629]
[1753569561524,28.9619,3747.8,3747.7,4.50629]
[1753569561731,28.9599,3747.8,3747.7,4.50629]
[1753569562525,1.94301,3748.3,3748.2,2.3758]
[1753569562730,3.3408,3748.4,3748.3,4.50621]
[1753569562927,2.9114,3748.8,3748.7,2.13035]
[1753569563129,23.493,3748.8,3748.7,4.50615]
[1753569563526,5.4599,3749.4,3749.3,2.12877]
[1753569563724,28.9509,3749.4,3749.3,4.50457]
[1753569563921,28.9509,3749.4,3748.9,3.2078]
[1753569563922,2.5485,3749.1,3749.0,0.9403]
[1753569564130,29.8655,3749.1,3749.0,0.9403]
[1753569564434,29.8655,3749.1,3749.0,1.47361]
[1753569565222,29.8655,3749.1,3749.0,2.09241]
[1753569565520,29.8655,3749.1,3749.0,1.5591]
[1753569565731,29.8655,3749.1,3749.0,2.09241]
[1753569566433,28.9479,3749.1,3749.0,4.50361]
[1753569567527,27.4461,3749.1,3749.0,4.50361]